bitfinex-derivatives/quotes_BTCF0:USTF0_20250810
["timestamp","ask_amount","ask_price","bid_price","bid_amount"]
[1754831024779,0.4732369,118590.0,118580.0,0.66491194]
[1754831024970,0.4732369,118590.0,118580.0,0.73472194]
[1754831025572,0.4752369,118590.0,118580.0,0.73472194]
[1754831026176,0.4732369,118590.0,118580.0,0.73472194]
[1754831026379,0.4762369,118590.0,118580.0,0.74421194]
[1754831026572,0.4762369,118590.0,118580.0,0.75913194]
[1754831027974,0.1154369,118590.0,118580.0,0.75913194]
[1754831028479,0.4762369,118590.0,118580.0,0.75913194]
[1754831029983,0.4762369,118590.0,118580.0,0.83473983]
[1754831030396,0.4762369,118590.0,118580.0,0.75913194]
[1754831030882,0.4762369,118590.0,118580.0,0.82603028]
[1754831031991,0.4762369,118590.0,118580.0,0.90163817]
[1754831033493,0.4762369,118590.0,118580.0,0.82603028]
[1754831035595,0.4762369,118590.0,118580.0,0.90163817]
[1754831036596,0.4521169,118590.0,118580.0,0.90163817]
[1754831037885,0.0913169,118590.0,118580.0,0.90163817]
[1754831040395,0.0913169,118590.0,118580.0,0.82603028]
[1754831040793,0.007,118590.0,118580.0,1.18683028]
[1754831040989,0.1687241,118600.0,118580.0,1.62931167]
[1754831041190,0.2530407,118600.0,118590.0,0.2021569]
[1754831041588,0.1687241,118600.0,118590.0,0.2021569]
[1754831041791,0.4450978,118620.0,118610.0,0.11784]
[1754831042091,0.5374078,118620.0,118610.0,0.75779666]
[1754831042694,0.1766078,118620.0,118610.0,0.75779666]
[1754831043197,0.5374078,118620.0,118610.0,0.75779666]
[1754831043396,0.5375078,118620.0,118610.0,0.75789666]
[1754831044391,0.5405078,118620.0,118610.0,0.75889666]
[1754831044590,0.5445078,118620.0,118610.0,0.75889666]
[1754831046298,0.5445078,118620.0,118610.0,0.83450455]
[1754831048001,0.5445078,118620.0,118610.0,0.81958455]
[1754831048197,0.5515078,118620.0,118610.0,0.81958455]
[1754831048501,0.5515078,118620.0,118610.0,0.83438455]
[1754831048800,0.5515078,118620.0,118610.0,0.07670789]
[1754831049002,0.5515078,118620.0,118610.0,0.10049789]
[1754831049502,0.5515078,118620.0,118610.0,0.11586789]
[1754831049895,0.5515078,118620.0,118610.0,0.14954789]
[1754831050596,0.5515078,118620.0,118610.0,0.18253789]
[1754831050995,0.5515078,118620.0,118610.0,0.19733789]
[1754831051397,0.5515078,118620.0,118610.0,0.12173]
[1754831051903,0.5515078,118620.0,118610.0,0.10693]
[1754831052202,0.5515078,118620.0,118610.0,0.14885789]
[1754831052595,0.5515078,118620.0,118610.0,0.07325]
[1754831052802,0.5515078,118620.0,118610.0,0.04026]
[1754831053305,0.5515078,118620.0,118610.0,0.02489]
[1754831055005,0.5515078,118620.0,118610.0,0.0011]
[1754831055214,1.25784381,118620.0,118610.0,0.0011]
[1754831056610,1.55784381,118620.0,118610.0,0.0011]
[1754831056803,0.1251798,118600.0,118590.0,0.63715789]
[1754831057001,0.8998698,118600.0,118590.0,0.65252789]
[1754831057200,0.8998698,118600.0,118590.0,0.18143789]
[1754831057406,0.8998698,118600.0,118590.0,0.19623789]
[1754831057907,0.9008698,118600.0,118590.0,0.20323789]
[1754831058108,0.9009698,118600.0,118590.0,0.20433789]
[1754831058709,0.9009698,118600.0,118590.0,0.20333789]
[1754831058909,0.9019698,118600.0,118590.0,0.20333789]
[1754831060205,0.9019698,118600.0,118590.0,0.19733789]
[1754831060510,0.9009698,118600.0,118590.0,0.19733789]
[1754831060712,0.9019698,118600.0,118590.0,0.19733789]
[1754831061510,0.9019698,118600.0,118590.0,0.12173]
[1754831063111,0.9019698,118600.0,118590.0,0.2060469]
[1754831063610,0.9019698,118600.0,118590.0,0.12173]
[1754831063812,0.9019698,118600.0,118590.0,0.19733789]
[1754831064007,0.9019698,118600.0,118590.0,0.28165479]
[1754831065711,0.9019698,118600.0,118590.0,0.19733789]
[1754831066406,0.8960698,118600.0,118590.0,0.11586789]
[1754831066608,0.9019698,118600.0,118590.0,0.02489]
[1754831066816,0.9019698,118600.0,118590.0,0.10066062]
[1754831070109,0.8960698,118600.0,118590.0,0.07687062]
[1754831070316,0.9019698,118600.0,118590.0,0.07687062]
[1754831070515,0.9019698,118600.0,118590.0,0.10066062]
[1754831070717,0.9019698,118600.0,118590.0,0.11603062]
[1754831071110,0.9103869,118600.0,118590.0,0.11603062]
[1754831071511,0.9019698,118600.0,118590.0,0.11603062]
[1754831073014,0.9019698,118600.0,118590.0,0.10066062]
[1754831073620,0.91051552,118600.0,118590.0,0.10066062]
[1754831074318,1.44859552,118600.0,118590.0,0.10066062]
[1754831075412,1.44859552,118600.0,118590.0,0.10166062]
[1754831075608,1.4400498,118600.0,118590.0,0.10166062]
[1754831076221,0.9019698,118600.0,118590.0,0.10166062]
[1754831076619,0.9009698,118600.0,118590.0,0.10166062]
[1754831076821,0.9019698,118600.0,118590.0,0.10166062]
[1754831077322,0.9039698,118600.0,118590.0,0.10066062]
[1754831077524,0.9059698,118600.0,118590.0,0.10066062]
[1754831084020,0.9000698,118600.0,118590.0,0.14812062]
[1754831084221,0.9000698,118600.0,118590.0,0.28055752]
[1754831084826,0.9000698,118600.0,118590.0,0.2047869]
[1754831086422,0.5392698,118600.0,118590.0,0.2047869]
[1754831087130,0.5392698,118600.0,118590.0,0.12047]
[1754831087429,0.5392698,118600.0,118590.0,0.2047869]
[1754831087822,0.5392698,118600.0,118590.0,0.28055752]
[1754831088025,0.4512098,118600.0,118590.0,0.28055752]
[1754831088524,0.5097198,118600.0,118590.0,0.28055752]
[1754831089728,0.5327298,118600.0,118590.0,0.28055752]
[1754831090230,0.5421698,118600.0,118590.0,0.28055752]
[1754831092630,0.4833298,118600.0,118590.0,0.28055752]
[1754831093232,0.4603198,118600.0,118590.0,0.31065866]
[1754831093934,0.4603198,118600.0,118590.0,0.28062375]
[1754831093935,0.4512098,118600.0,118590.0,0.28062375]
[1754831094133,0.5097198,118600.0,118590.0,0.28062375]
[1754831094631,0.5327298,118600.0,118590.0,0.28062375]
[1754831095326,0.3669,118600.0,118590.0,0.28062375]
[1754831095527,0.3669,118600.0,118590.0,0.31065866]
[1754831095831,0.0061,118600.0,118590.0,0.31065866]
[1754831096126,0.0061,118600.0,118590.0,0.47929865]
[1754831096934,0.0061,118600.0,118590.0,0.84009865]
[1754831097232,0.0061,118600.0,118590.0,1.03422689]
[1754831097419,0.2271073,118620.0,118610.0,0.1317627]
[1754831097619,0.2271073,118620.0,118610.0,0.81768772]
[1754831097832,0.1428057,118620.0,118610.0,0.81768772]
[1754831098026,0.05851,118620.0,118610.0,0.81768772]
[1754831098226,0.1428056,118620.0,118610.0,0.81768772]
[1754831098633,0.1428056,118620.0,118610.0,0.7419027]
[1754831098936,0.0001,118620.0,118610.0,1.11710172]
[1754831099230,0.0031,118620.0,118610.0,1.0120027]
[1754831099533,0.06161,118620.0,118610.0,1.0120027]
[1754831099728,0.1459056,118620.0,118610.0,1.0120027]
[1754831099934,0.06161,118620.0,118610.0,1.0120027]
[1754831100232,0.1479056,118620.0,118610.0,1.0120027]
[1754831100428,0.04864,118620.0,118610.0,1.0120027]
[1754831100631,0.5637989,118640.0,118630.0,0.0842885]
[1754831100834,0.7945028,118640.0,118630.0,0.7418085]
[1754831101435,0.4541918,118640.0,118630.0,0.7418085]
[1754831101635,0.3022338,118650.0,118640.0,0.1324014]
[1754831101835,0.3494938,118650.0,118640.0,0.27978997]
[1754831102037,0.3494938,118650.0,118640.0,0.2040814]
[1754831102235,0.3494938,118650.0,118640.0,0.27967082]
[1754831102435,0.3494938,118650.0,118640.0,0.345942]
[1754831102639,0.3614938,118650.0,118640.0,0.345942]
[1754831102844,0.7222938,118650.0,118640.0,0.345942]
[1754831103525,0.7222938,118650.0,118640.0,0.297822]
[1754831103731,0.7222938,118650.0,118640.0,0.331982]
[1754831103940,0.7222938,118650.0,118640.0,0.345942]
[1754831104135,0.7222938,118650.0,118640.0,0.27035258]
[1754831104537,0.7242938,118650.0,118640.0,0.27035258]
[1754831104936,0.7262938,118650.0,118640.0,0.27035258]
[1754831110745,0.630013,118650.0,118640.0,0.27035258]
[1754831111642,0.565573,118650.0,118640.0,0.27035258]
[1754831111845,0.577333,118650.0,118640.0,0.27035258]
[1754831112043,0.629643,118650.0,118640.0,0.27035258]
[1754831114251,0.46109,118650.0,118640.0,0.27035258]
[1754831115157,0.10029,118650.0,118640.0,0.27035258]
[1754831115546,0.10029,118650.0,118640.0,0.63115258]
[1754831115948,0.10029,118650.0,118640.0,0.27035258]
[1754831116161,0.10029,118650.0,118640.0,0.63115258]
[1754831117055,0.1845643,118650.0,118640.0,0.63115258]
[1754831118054,0.1845643,118650.0,118640.0,0.90015258]
[1754831119356,0.0974843,118650.0,118640.0,0.78035258]
[1754831119555,0.5453643,118650.0,118640.0,0.41955258]
[1754831119752,0.5573643,118650.0,118640.0,0.46019258]
[1754831120051,0.5573643,118650.0,118640.0,0.53726258]
[1754831120651,0.5573643,118650.0,118640.0,0.52330258]
[1754831120853,0.5573643,118650.0,118640.0,1.22815258]
[1754831121453,0.5573643,118650.0,118640.0,1.26053258]
[1754831121855,0.5573643,118650.0,118640.0,0.33527118]
[1754831122056,0.5573643,118650.0,118640.0,1.10315118]
[1754831123352,0.5573643,118650.0,118640.0,0.269]
[1754831123551,0.5573643,118650.0,118640.0,1.03676]
[1754831123751,0.0842814,118640.0,118630.0,0.02481]
[1754831123951,0.5539514,118640.0,118630.0,0.76782]
[1754831124761,0.5539514,118640.0,118630.0,0.79253]
[1754831124960,0.5559514,118640.0,118630.0,0.79253]
[1754831125953,0.5559514,118640.0,118630.0,0.9698185]
[1754831126156,0.5559514,118640.0,118630.0,0.88553]
[1754831126358,0.5569514,118640.0,118630.0,0.88553]
[1754831136079,0.9177514,118640.0,118630.0,0.88553]
[1754831141787,0.92608599,118640.0,118630.0,0.88553]
[1754831146994,0.92608599,118640.0,118630.0,0.11781]
[1754831147193,0.92608599,118640.0,118630.0,0.88481]
[1754831147991,0.92608599,118640.0,118630.0,0.79181]
[1754831148394,0.9177514,118640.0,118630.0,0.88615]
[1754831148591,0.9057514,118640.0,118630.0,0.88615]
[1754831150595,0.8186714,118640.0,118630.0,0.88615]
[1754831150795,0.9012814,118640.0,118630.0,0.88615]
[1754831152096,0.9012814,118640.0,118630.0,0.96173942]
[1754831153194,0.9012814,118640.0,118630.0,1.04602792]
[1754831153388,0.4480814,118640.0,118630.0,1.04602792]
[1754831153698,0.003,118640.0,118630.0,1.3312385]
[1754831153998,0.3609,118650.0,118640.0,0.2013114]
[1754831154194,0.4451743,118650.0,118640.0,0.37542345]
[1754831154690,0.0843743,118650.0,118640.0,0.37542345]
[1754831154890,0.4451743,118650.0,118640.0,0.37542345]
[1754831155096,0.0843743,118650.0,118640.0,0.37542345]
[1754831155293,0.0863743,118650.0,118640.0,0.37542345]
[1754831155690,0.0883743,118650.0,118640.0,0.37542345]
[1754831162399,0.0883743,118650.0,118640.0,0.26926138]
[1754831163201,0.0883743,118650.0,118640.0,0.37542345]
[1754831163594,0.0883743,118650.0,118640.0,0.45112206]
[1754831164001,0.0883743,118650.0,118640.0,0.81192206]
[1754831164202,0.0883743,118650.0,118640.0,0.73622345]
[1754831164604,0.0883743,118650.0,118640.0,0.63006138]
[1754831165102,0.0883743,118650.0,118640.0,0.73622345]
[1754831166405,0.0883743,118650.0,118640.0,0.37542345]
[1754831166898,0.0883743,118650.0,118640.0,0.3449261]
[1754831167093,0.0883743,118650.0,118640.0,0.63006138]
[1754831168118,0.0883743,118650.0,118640.0,0.26926138]
[1754831169105,0.0883743,118650.0,118640.0,0.34491471]
[1754831172505,0.0883743,118650.0,118640.0,0.26926138]
[1754831173203,0.0883743,118650.0,118640.0,0.34491123]
[1754831173404,0.0883743,118650.0,118640.0,0.26926138]
[1754831174309,0.0883743,118650.0,118640.0,0.53826138]
[1754831180306,0.0041,118650.0,118640.0,0.53826138]
[1754831180510,0.0883743,118650.0,118640.0,0.53826138]
[1754831182802,0.0883743,118650.0,118640.0,0.64436079]
[1754831184014,0.0853743,118650.0,118640.0,0.53826138]
[1754831185514,0.0853743,118650.0,118640.0,0.89906138]
[1754831187119,0.0853743,118650.0,118640.0,0.53826138]
[1754831187310,0.0853743,118650.0,118640.0,0.89906138]
[1754831192924,0.0853743,118650.0,118640.0,1.00516079]
[1754831194027,0.0011,118650.0,118640.0,1.00516079]
[1754831194525,0.0011,118650.0,118640.0,0.89906138]
[1754831198718,0.6036963,118680.0,118670.0,0.02574]
[1754831198924,0.6264963,118680.0,118670.0,1.04817497]
[1754831199523,0.6264963,118680.0,118670.0,1.05646304]
[1754831199926,0.6264963,118680.0,118670.0,1.08680499]
[1754831200130,0.6265963,118680.0,118670.0,1.08680499]
[1754831200335,0.6295963,118680.0,118670.0,1.08680499]
[1754831201236,0.6315963,118680.0,118670.0,1.08680499]
[1754831201530,0.6315963,118680.0,118670.0,0.98060817]
[1754831203136,0.6435963,118680.0,118670.0,0.98060817]
[1754831203538,0.6435963,118680.0,118670.0,0.9722801]
[1754831203740,0.6435963,118680.0,118670.0,1.04804011]
[1754831204042,0.6435963,118680.0,118670.0,0.9722801]
[1754831204442,0.6435963,118680.0,118670.0,1.04803484]
[1754831204641,0.6435963,118680.0,118670.0,0.9722801]
[1754831205442,0.6435963,118680.0,118670.0,0.88802]
[1754831206038,0.6435963,118680.0,118670.0,0.99421682]
[1754831206647,0.6435963,118680.0,118670.0,1.069965]
[1754831206838,0.6435963,118680.0,118670.0,0.96376818]
[1754831207749,0.6315963,118680.0,118670.0,0.07574818]
[1754831207950,0.6435963,118680.0,118670.0,0.84262818]
[1754831208154,0.6435963,118680.0,118670.0,0.86722818]
[1754831208846,0.6435963,118680.0,118670.0,0.79148]
[1754831209644,0.6435963,118680.0,118670.0,0.80789]
[1754831210147,0.6435963,118680.0,118670.0,0.87404]
[1754831210347,0.6435963,118680.0,118670.0,0.88798]
[1754831211051,0.6435963,118680.0,118670.0,0.96372818]
[1754831211345,0.6435963,118680.0,118670.0,0.91583818]
[1754831211735,0.6435963,118680.0,118670.0,0.88363818]
[1754831213144,0.6435963,118680.0,118670.0,0.86722818]
[1754831214252,0.6435963,118680.0,118670.0,0.91758818]
[1754831214951,0.6435963,118680.0,118670.0,0.94978818]
[1754831215449,0.6435963,118680.0,118670.0,0.96372818]
[1754831215839,0.6435963,118680.0,118670.0,0.03735848]
[1754831216046,0.6435963,118680.0,118650.0,0.03395]
[1754831216047,0.1912572,118660.0,118650.0,0.03395]
[1754831216248,0.2060443,118650.0,118640.0,0.03228232]
[1754831216539,0.2060585,118630.0,118620.0,0.24767108]
[1754831216741,0.9276585,118630.0,118620.0,0.0965]
[1754831217951,0.9276585,118630.0,118620.0,0.1211]
[1754831218151,0.9277585,118630.0,118620.0,0.1212]
[1754831219052,0.0843885,118630.0,118620.0,0.2054956]
[1754831220358,0.0843885,118630.0,118620.0,0.5662956]
[1754831220554,0.0853885,118630.0,118620.0,0.5722956]
[1754831220753,0.0853885,118630.0,118620.0,0.2114956]
[1754831220953,0.5304885,118630.0,118620.0,0.1392]
[1754831221257,0.5699585,118630.0,118620.0,0.1392]
[1754831222348,0.5699585,118630.0,118620.0,0.2234956]
[1754831223953,0.5699585,118630.0,118620.0,0.1392]
[1754831225658,0.5689585,118630.0,118620.0,0.1352]
[1754831225851,0.5689585,118630.0,118620.0,0.12126]
[1754831226257,0.5689585,118630.0,118620.0,0.13586]
[1754831226760,0.5679585,118630.0,118620.0,0.12986]
[1754831226959,0.5679585,118630.0,118620.0,0.13386]
[1754831227851,0.5679585,118630.0,118620.0,0.2181556]
[1754831228458,0.5679585,118630.0,118620.0,0.13386]
[1754831232060,0.5679585,118630.0,118620.0,0.90094]
[1754831233062,0.9287585,118630.0,118620.0,0.90094]
[1754831233962,0.9287585,118630.0,118620.0,0.81198]
[1754831234161,0.9287585,118630.0,118620.0,0.83525]
[1754831234564,0.93704074,118630.0,118620.0,0.88286]
[1754831234867,0.9287585,118630.0,118620.0,0.77918]
[1754831235067,0.9287585,118630.0,118620.0,0.80245]
[1754831235461,0.9287585,118630.0,118620.0,0.87334]
[1754831235662,0.9287585,118630.0,118620.0,0.88286]
[1754831236261,0.9287585,118630.0,118620.0,0.0121]
[1754831237058,0.9287585,118630.0,118620.0,0.03537]
[1754831237664,0.9287585,118630.0,118620.0,0.03137]
[1754831238965,0.9277585,118630.0,118620.0,0.02337]
[1754831239167,0.9287585,118630.0,118620.0,0.02637]
[1754831241168,1.6958785,118630.0,118620.0,0.0031]
[1754831243267,1.8644785,118630.0,118620.0,0.0031]
[1754831243472,0.2010499,118600.0,118590.0,0.53086655]
[1754831243771,0.5618499,118600.0,118590.0,1.29798655]
[1754831243971,0.5378799,118600.0,118590.0,1.29798655]
[1754831244769,0.0863099,118600.0,118590.0,1.30998655]
[1754831245074,0.0864099,118600.0,118590.0,1.31008655]
[1754831245269,0.0021,118600.0,118590.0,1.31008655]
[1754831245571,0.6235807,118620.0,118610.0,0.2025828]
[1754831245775,0.6843907,118620.0,118610.0,0.9697428]
[1754831245975,0.7064707,118620.0,118610.0,0.9697428]
[1754831247376,0.7074707,118620.0,118610.0,0.9767428]
[1754831247582,0.7075707,118620.0,118610.0,0.87794]
[1754831247879,0.7315407,118620.0,118610.0,0.0071]
[1754831248385,0.7335407,118620.0,118610.0,0.0201]
[1754831248579,0.7335407,118620.0,118610.0,0.04337]
[1754831251385,0.7325407,118620.0,118610.0,0.04037]
[1754831251574,0.7315407,118620.0,118610.0,0.03537]
[1754831252480,0.6621207,118620.0,118610.0,0.9822428]
[1754831252788,0.7075707,118620.0,118610.0,0.9822428]
[1754831253176,0.6148007,118620.0,118610.0,0.9822428]
[1754831253482,0.6148007,118620.0,118610.0,1.00093394]
[1754831254587,0.6466507,118620.0,118610.0,1.00093394]
[1754831255290,0.2858507,118620.0,118610.0,1.00093394]
[1754831255989,0.6466507,118620.0,118610.0,1.00093394]
[1754831256192,0.6565307,118620.0,118610.0,1.00093394]
[1754831256394,0.6705407,118620.0,118610.0,1.00093394]
[1754831257094,0.6859007,118620.0,118610.0,1.00093394]
[1754831260200,0.7079307,118620.0,118610.0,1.00093394]
[1754831260402,0.7079307,118620.0,118610.0,1.10669449]
[1754831262202,0.7079307,118620.0,118610.0,1.00093394]
[1754831263005,0.7315307,118620.0,118610.0,1.00093394]
[1754831270908,0.7315307,118620.0,118610.0,1.10669449]
[1754831274909,0.3471307,118620.0,118610.0,1.10669449]
[1754831278409,0.7079307,118620.0,118610.0,1.10669449]
[1754831278911,0.7079307,118620.0,118610.0,1.00093394]
[1754831281210,0.3471307,118620.0,118610.0,1.00093394]
[1754831282105,0.7079307,118620.0,118610.0,1.00093394]
[1754831282306,0.7315307,118620.0,118610.0,1.00093394]
[1754831287515,0.7079307,118620.0,118610.0,1.00093394]
[1754831288427,0.3471307,118620.0,118610.0,1.00093394]
[1754831289108,0.3471307,118620.0,118610.0,1.10669449]
[1754831290517,0.7079307,118620.0,118610.0,1.10669449]
[1754831291723,0.7079307,118620.0,118610.0,1.00093394]
[1754831297526,0.3471307,118620.0,118610.0,1.00093394]
[1754831298821,0.3471307,118620.0,118610.0,1.10721246]
[1754831300324,0.2540007,118620.0,118610.0,1.00093394]
[1754831301420,0.2540007,118620.0,118610.0,1.10721442]
[1754831304823,0.2861807,118620.0,118610.0,1.00093394]
[1754831305433,0.2540007,118620.0,118610.0,1.00093394]
[1754831307023,0.1696998,118620.0,118610.0,1.00093394]
[1754831307220,0.0011,118620.0,118610.0,1.36173394]
[1754831307524,0.084291,118630.0,118620.0,0.11834]
[1754831307725,0.084291,118630.0,118620.0,0.5634357]
[1754831308239,0.613655,118640.0,118630.0,0.2026286]
[1754831308434,0.613655,118640.0,118630.0,1.07654165]
[1754831309340,0.614655,118640.0,118630.0,1.07954165]
[1754831309527,0.614655,118640.0,118630.0,1.07964165]
[1754831309528,0.614755,118640.0,118630.0,1.07964165]
[1754831309929,0.614755,118640.0,118630.0,1.08164165]
[1754831310130,0.614755,118640.0,118630.0,0.9754886]
[1754831311237,0.614755,118640.0,118630.0,0.9764886]
[1754831312830,0.253955,118640.0,118630.0,1.3372886]
[1754831313133,0.326615,118640.0,118630.0,0.9764886]
[1754831313840,0.687415,118640.0,118630.0,0.9764886]
[1754831314036,0.624665,118640.0,118630.0,0.9764886]
[1754831315642,0.671565,118640.0,118630.0,0.9764886]
[1754831315940,0.687455,118640.0,118630.0,0.9764886]
[1754831316442,0.326655,118640.0,118630.0,0.9764886]
[1754831317247,0.348655,118640.0,118630.0,0.9764886]
[1754831317741,0.348655,118640.0,118630.0,1.08264165]
[1754831318439,0.348655,118640.0,118630.0,1.44344165]
[1754831319647,0.263865,118640.0,118630.0,1.08264165]
[1754831320843,0.1696674,118640.0,118630.0,1.08264165]
[1754831321141,0.0853817,118640.0,118630.0,1.44344165]
[1754831321343,0.0853817,118640.0,118630.0,1.3372886]
[1754831321839,0.0011,118640.0,118630.0,1.3372886]
[1754831322035,0.0011,118640.0,118630.0,1.6062886]
[1754831322743,0.0011,118640.0,118630.0,1.3372886]
[1754831325339,0.2528139,118660.0,118650.0,0.2014643]
[1754831325548,0.3088739,118660.0,118650.0,0.9691843]
[1754831326145,0.3088739,118660.0,118650.0,0.97772706]
[1754831326348,0.3251739,118660.0,118650.0,0.97772706]
[1754831326548,0.3292739,118660.0,118650.0,0.97782706]
[1754831326847,0.3312739,118660.0,118650.0,0.97782706]
[1754831327149,0.1158272,118660.0,118650.0,0.97782706]
[1754831327340,0.1158272,118660.0,118650.0,1.33862706]
[1754831327651,0.1138272,118660.0,118650.0,1.33862706]
[1754831328044,0.1108272,118660.0,118650.0,1.34162706]
[1754831328856,0.1797272,118660.0,118650.0,0.98082706]
[1754831329152,0.5405272,118660.0,118650.0,0.98082706]
[1754831329340,0.5647872,118660.0,118650.0,0.98082706]
[1754831329751,0.2039872,118660.0,118650.0,0.98082706]
[1754831331664,0.1108272,118660.0,118650.0,0.98082706]
[1754831331855,0.1108272,118660.0,118650.0,1.34162706]
[1754831332560,0.0945272,118660.0,118650.0,1.34162706]
[1754831332860,0.0853672,118660.0,118650.0,1.34162706]
[1754831333059,0.0853672,118660.0,118650.0,0.98082706]
[1754831335458,0.0853672,118660.0,118650.0,1.34162706]
[1754831335852,0.0011,118660.0,118650.0,1.34162706]
[1754831336163,0.0011,118660.0,118650.0,1.36031345]
[1754831338563,0.0011,118660.0,118650.0,1.46620467]
[1754831339063,0.0011,118660.0,118650.0,1.36031345]
[1754831340564,0.0853672,118660.0,118650.0,1.36031345]
[1754831342267,0.0011,118660.0,118650.0,1.46620467]
[1754831343367,0.0011,118660.0,118650.0,1.36031345]
[1754831343561,0.0853672,118660.0,118650.0,1.36031345]
[1754831344162,0.0011,118660.0,118650.0,1.46620467]
[1754831348068,0.0011,118660.0,118650.0,1.36031345]
[1754831348972,0.0011,118660.0,118650.0,1.62931345]
[1754831349175,0.0011,118660.0,118650.0,1.73531869]
[1754831349568,0.0011,118660.0,118650.0,1.62931345]
[1754831353074,0.0011,118660.0,118650.0,1.73539955]
[1754831353575,0.0011,118660.0,118650.0,1.62931345]
[1754831356177,0.4561016,118680.0,118670.0,0.1791701]
[1754831356370,0.3475015,118680.0,118670.0,0.9700901]
[1754831356772,0.3718415,118680.0,118670.0,0.9700901]
[1754831357276,0.3738415,118680.0,118670.0,0.9700901]
[1754831357472,0.3739415,118680.0,118670.0,0.9700901]
[1754831357973,0.3769415,118680.0,118670.0,0.9700901]
[1754831358674,0.3749415,118680.0,118670.0,0.9700901]
[1754831358880,0.3729415,118680.0,118670.0,0.9700901]
[1754831360775,0.2539715,118680.0,118670.0,0.9700901]
[1754831361487,0.2539715,118680.0,118670.0,1.07618738]
[1754831362284,0.2965415,118680.0,118670.0,1.07618738]
[1754831362584,0.3105515,118680.0,118670.0,1.07618738]
[1754831365590,0.2262914,118680.0,118670.0,1.07618738]
[1754831365790,0.0012,118680.0,118670.0,1.07618738]
[1754831365997,0.180083,118680.0,118670.0,1.07618738]
[1754831366293,0.09583,118680.0,118670.0,1.43698738]
[1754831366491,0.0012,118680.0,118670.0,1.43698738]
[1754831367895,0.085453,118680.0,118670.0,1.07618738]
[1754831376589,0.0012,118680.0,118670.0,1.07618738]
[1754831377400,0.0012,118680.0,118670.0,0.9700901]
[1754831379204,0.085453,118680.0,118670.0,0.9700901]
[1754831381105,0.085453,118680.0,118670.0,0.98921812]
[1754831381310,0.085453,118680.0,118670.0,1.0953154]
[1754831381509,0.085453,118680.0,118670.0,1.7251154]
[1754831382406,0.085453,118680.0,118670.0,1.3643154]
[1754831389022,0.085453,118680.0,118670.0,1.7251154]
[1754831391021,0.0012,118680.0,118670.0,1.7251154]
[1754831391319,0.0012,118680.0,118670.0,1.61901812]
[1754831395425,0.085453,118680.0,118670.0,1.61901812]
[1754831396827,0.0012,118680.0,118670.0,1.61901812]
[1754831403930,0.3702794,118700.0,118690.0,0.2044459]
[1754831404129,0.3702794,118700.0,118690.0,0.9712859]
[1754831404427,0.2860336,118700.0,118690.0,0.9712859]
[1754831404623,0.1095388,118700.0,118690.0,0.9712859]
[1754831405022,0.1561188,118700.0,118690.0,0.9722859]
[1754831405230,0.1562188,118700.0,118690.0,0.9722859]
[1754831405830,0.1562188,118700.0,118690.0,1.3330859]
[1754831406030,0.1420788,118700.0,118690.0,1.3330859]
[1754831406218,0.1420788,118700.0,118690.0,0.9722859]
[1754831406619,0.1420788,118700.0,118690.0,1.07830824]
[1754831407329,0.1563688,118700.0,118690.0,1.07830824]
[1754831407520,0.1774688,118700.0,118690.0,1.07830824]
[1754831407926,0.2018188,118700.0,118690.0,1.07830824]
[1754831410527,0.5626188,118700.0,118690.0,1.07830824]
[1754831410834,0.2018188,118700.0,118690.0,1.07830824]
[1754831411035,0.1774688,118700.0,118690.0,1.07830824]
[1754831412538,0.1774688,118700.0,118690.0,0.9722859]
[1754831413136,0.1774688,118700.0,118690.0,1.07830824]
[1754831413638,0.5382688,118700.0,118690.0,1.07830824]
[1754831414040,0.1774688,118700.0,118690.0,1.07830824]
[1754831414430,0.5382688,118700.0,118690.0,0.9722859]
[1754831417638,0.5618588,118700.0,118690.0,0.0852459]
[1754831417946,0.5618588,118700.0,118690.0,0.8763759]
[1754831418244,0.5618588,118700.0,118690.0,0.9717359]
[1754831418844,0.5618588,118700.0,118690.0,0.76776]
[1754831419542,0.5618588,118700.0,118690.0,0.8520059]
[1754831419743,0.5618588,118700.0,118690.0,0.8763759]
[1754831419956,0.5618588,118700.0,118690.0,0.79213]
[1754831420441,0.5618588,118700.0,118690.0,0.8763759]
[1754831420635,0.5618588,118700.0,118690.0,0.79213]
[1754831422038,0.5618588,118700.0,118690.0,0.76776]
[1754831422947,0.5618588,118700.0,118690.0,0.79213]
[1754831424448,0.5618588,118700.0,118690.0,0.82601]
[1754831424647,0.5618588,118700.0,118690.0,0.84193]
[1754831424849,0.5618588,118700.0,118690.0,0.8738]
[1754831425149,0.5618588,118700.0,118690.0,0.88749]
[1754831425952,0.5375088,118700.0,118690.0,0.9717359]
[1754831426553,0.5618588,118700.0,118690.0,0.9717359]
[1754831429355,0.5618588,118700.0,118690.0,0.88749]
[1754831434451,0.5618588,118700.0,118690.0,0.9717359]
[1754831443666,0.5375088,118700.0,118690.0,0.9717359]
[1754831445056,0.1767088,118700.0,118690.0,0.9717359]
[1754831445262,0.5375088,118700.0,118690.0,0.9717359]
[1754831448872,0.5607488,118700.0,118690.0,0.9717359]
[1754831449665,0.1999488,118700.0,118690.0,0.9717359]
[1754831449865,0.5607488,118700.0,118690.0,0.9717359]
[1754831450672,0.1999488,118700.0,118690.0,0.9717359]
[1754831450874,0.5607488,118700.0,118690.0,0.9717359]
[1754831451868,0.5607488,118700.0,118690.0,1.07775824]
[1754831452275,0.1999488,118700.0,118690.0,1.07775824]
[1754831452475,0.5607488,118700.0,118690.0,1.07775824]
[1754831453473,0.5607488,118700.0,118690.0,0.9717359]
[1754831453674,0.5375088,118700.0,118690.0,0.9717359]
[1754831455373,0.1767088,118700.0,118690.0,0.9717359]
[1754831455581,0.5375088,118700.0,118690.0,0.9717359]
[1754831456072,0.1767088,118700.0,118690.0,0.9717359]
[1754831456273,0.5375088,118700.0,118690.0,0.9717359]
[1754831458882,0.4451388,118700.0,118690.0,0.9717359]
[1754831459682,0.0843388,118700.0,118690.0,0.9717359]
[1754831460179,0.0843388,118700.0,118690.0,1.04760331]
[1754831466288,0.0843388,118700.0,118690.0,0.9717359]
[1754831466584,0.0843388,118700.0,118690.0,0.99074583]
[1754831466784,0.0843388,118700.0,118690.0,1.09676817]
[1754831468089,0.0843388,118700.0,118690.0,1.17257222]
[1754831468488,0.0843388,118700.0,118690.0,1.06654988]
[1754831468986,0.0001,118700.0,118690.0,0.99074583]
[1754831470184,0.6135047,118710.0,118700.0,0.2037288]
[1754831470784,0.6135047,118710.0,118700.0,0.27948598]
[1754831471892,0.6135047,118710.0,118700.0,0.34525192]
[1754831472091,0.6136047,118710.0,118700.0,0.34525192]
[1754831472391,0.6136047,118710.0,118700.0,0.35356676]
[1754831472783,0.6146047,118710.0,118700.0,0.35356676]
[1754831473287,0.6146047,118710.0,118700.0,0.35456676]
[1754831473893,0.2538047,118710.0,118700.0,0.35456676]
[1754831474080,0.2538047,118710.0,118700.0,0.27880958]
[1754831475584,0.1695677,118710.0,118700.0,0.27880958]
[1754831478093,0.2110177,118710.0,118700.0,0.27880958]